bitfinex-derivatives/quotes_SOLF0:USTF0_20240918
["timestamp","ask_amount","ask_price","bid_price","bid_amount"]
[1726695505981,2.9314,131.57,131.31,152.18]
[1726695506189,10.56,131.48,131.43,10.56]
[1726695506387,14.38189409,131.48,131.43,10.56]
[1726695506988,14.38189409,131.48,131.45,3.8029]
[1726695507283,3.82189409,131.48,131.42,2.8635]
[1726695507494,1.4221,131.54,131.43,3.8035]
[1726695507682,1.4221,131.54,131.4,10.56]
[1726695507683,10.56,131.46,131.4,10.56]
[1726695507884,10.56,131.45,131.4,10.56]
[1726695508086,3.824937,131.45,131.4,10.56]
[1726695508282,1.4221,131.54,131.4,10.56]
[1726695508283,10.56,131.44,131.41,3.804]
[1726695508485,10.56,131.44,131.4,10.56]
[1726695508894,10.56,131.44,131.42,3.804]
[1726695509789,3.80006155,131.45,131.42,3.804]
[1726695511483,14.3628,131.46,131.42,3.804]
[1726695512000,18.24089547,131.46,131.41,3.8042]
[1726695512782,3.8032,131.45,131.41,3.8042]
[1726695514593,18.24099547,131.46,131.42,3.804]
[1726695517196,3.87809547,131.46,131.43,3.8036]
[1726695517391,14.3626,131.47,131.43,3.8036]
[1726695517800,10.56,131.47,131.43,3.8036]
[1726695518101,14.34378602,131.47,131.43,3.8036]
[1726695518797,3.78378602,131.47,131.43,10.56]
[1726695519100,14.362,131.49,131.44,10.56]
[1726695519600,18.2283754,131.49,131.45,3.8029]
[1726695519791,14.4263754,131.49,131.44,10.56]
[1726695520302,14.4263754,131.49,131.46,3.8027]
[1726695521393,10.56,131.49,131.46,3.8027]
[1726695521601,14.42845683,131.49,131.46,3.8027]
[1726695525103,14.42845683,131.49,131.45,10.56]
[1726695525304,3.86845683,131.49,131.45,10.56]
[1726695525490,10.56,131.5,131.45,10.56]
[1726695525799,14.34397111,131.5,131.45,10.56]
[1726695526502,14.34397111,131.5,131.37,2.9964]
[1726695526699,14.34397111,131.5,131.46,10.56]
[1726695527506,14.34397111,131.5,131.47,3.8024]
[1726695528005,10.56,131.49,131.44,10.56]
[1726695528207,10.56,131.49,131.46,3.8028]
[1726695528403,10.56,131.49,131.45,10.56]
[1726695528805,10.56,131.49,131.47,3.8025]
[1726695529700,7.58577111,131.5,131.47,3.8025]
[1726695530607,3.78397111,131.5,131.47,3.8025]
[1726695530805,14.3615,131.51,131.47,3.8025]
[1726695531307,18.1216841,131.51,131.47,3.8025]
[1726695531917,10.56,131.5,131.47,3.8025]
[1726695533712,10.56,131.49,131.47,3.8025]
[1726695536906,10.56,131.48,131.43,10.56]
[1726695537108,10.56,131.48,131.42,10.56]
[1726695537413,10.56,131.48,131.45,3.8029]
[1726695538211,10.56,131.47,131.45,3.8029]
[1726695538909,3.802,131.49,131.46,3.8028]
[1726695539112,10.56,131.47,131.42,10.56]
[1726695540217,10.56,131.47,131.45,3.8029]
[1726695542203,10.56,131.47,131.46,3.8028]
[1726695542616,3.7601841,131.51,131.44,10.56]
[1726695542819,10.56,131.5,131.45,10.56]
[1726695543012,3.86122607,131.51,131.46,10.56]
[1726695543317,14.3613,131.52,131.48,3.8021]
[1726695543618,14.3614,131.51,131.48,3.8021]
[1726695544019,10.56,131.51,131.48,3.8021]
[1726695544412,14.28794528,131.51,131.48,3.8021]
[1726695545810,14.28794528,131.51,131.48,14.3621]
[1726695545811,3.72794528,131.51,131.48,14.3621]
[1726695546006,10.56,131.52,131.49,3.8019]
[1726695546210,14.38800136,131.52,131.49,3.8019]
[1726695549414,3.82800136,131.52,131.5,3.8016]
[1726695549619,5.2227,131.54,131.49,10.56]
[1726695549620,10.56,131.54,131.49,10.56]
[1726695549924,10.56,131.55,131.5,10.56]
[1726695550628,10.56,131.55,131.53,3.8008]
[1726695550818,10.56,131.56,131.53,3.8008]
[1726695551011,10.56,131.56,131.53,3.8006]
[1726695551718,10.56,131.56,131.54,3.8004]
[1726695551923,10.56,131.56,131.52,10.56]
[1726695552217,3.85916973,131.59,131.52,10.56]
[1726695552420,10.56,131.58,131.54,3.8003]
[1726695552815,4.5094,131.61,131.56,3.7999]
[1726695553020,4.5094,131.61,131.55,10.56]
[1726695553021,10.56,131.59,131.55,10.56]
[1726695553326,2.9914,131.61,131.53,14.3605]
[1726695553529,10.56,131.57,131.49,1.4242]
[1726695553823,10.56,131.55,131.49,1.4242]
[1726695554017,14.41554016,131.55,131.5,10.56]
[1726695554728,14.41554016,131.55,131.52,3.8011]
[1726695557324,3.85554016,131.55,131.51,10.56]
[1726695557519,10.56,131.57,131.51,10.56]
[1726695557923,10.56,131.57,131.49,1.4242]
[1726695557924,10.56,131.52,131.44,13.7740942]
[1726695558117,1.3917,131.56,131.44,2.8678]
[1726695558313,10.56,131.48,131.44,2.8678]
[1726695558517,3.85706138,131.47,131.44,1.4456]
[1726695558725,10.56,131.47,131.43,3.8035]
[1726695558919,14.36533979,131.47,131.43,3.8035]
[1726695559526,18.16783979,131.47,131.42,14.3639]
[1726695560525,14.36533979,131.47,131.43,3.8036]
[1726695561029,10.56,131.48,131.43,10.56]
[1726695561326,3.74629504,131.47,131.44,10.56]
[1726695561532,2.8543,131.55,131.44,10.56]
[1726695561829,10.56,131.51,131.45,10.56]
[1726695562028,14.27128294,131.51,131.45,10.56]
[1726695562520,10.56,131.5,131.46,3.8028]
[1726695563231,14.3618,131.5,131.46,3.8028]
[1726695563531,10.56,131.5,131.47,3.8025]
[1726695563732,3.71128294,131.51,131.46,10.56]
[1726695563920,2.8543,131.55,131.45,16.42]
[1726695563921,16.42,131.54,131.45,16.42]
[1726695564229,3.8011,131.52,131.48,3.8021]
[1726695564730,20.26474486,131.54,131.45,16.42]
[1726695564933,3.801,131.53,131.45,16.42]
[1726695566433,3.801,131.53,131.49,3.8018]
[1726695566931,3.801,131.53,131.45,16.42]
[1726695567223,3.801,131.53,131.46,1.4896]
[1726695567425,24.06534486,131.54,131.46,1.4896]
[1726695567626,24.06534486,131.54,131.5,3.8016]
[1726695568530,3.84474486,131.54,131.51,3.8013]
[1726695568831,6.6546,131.55,131.51,3.8013]
[1726695569936,3.8008,131.53,131.49,3.8018]
[1726695570133,3.84910523,131.52,131.49,3.8018]
[1726695570333,3.84910523,131.52,131.5,3.8014]
[1726695570636,3.8005,131.54,131.5,3.8014]
[1726695570826,2.8543,131.55,131.5,3.8014]
[1726695571026,3.8006,131.54,131.5,3.8014]
[1726695571332,7.57590345,131.54,131.5,3.8014]
[1726695574239,3.77530345,131.54,131.51,3.8013]
[1726695574425,6.6546,131.55,131.51,3.8013]
[1726695575937,2.8543,131.55,131.51,3.8013]
[1726695576641,6.6547,131.55,131.51,3.8013]
[1726695580243,6.6547,131.55,131.47,16.42]
[1726695580244,2.8543,131.55,131.47,16.42]
[1726695580445,19.2743,131.55,131.46,19.3628]
[1726695581139,2.8543,131.55,131.46,19.3628]
[1726695581334,6.6547,131.55,131.51,3.8013]
[1726695581933,3.8005,131.54,131.51,3.8013]
[1726695582138,7.62458685,131.54,131.5,3.8015]
[1726695582344,3.8005,131.54,131.5,3.8015]
[1726695582837,7.64893197,131.54,131.5,3.8015]
[1726695583438,3.84843197,131.54,131.51,3.8013]
[1726695583637,2.8543,131.55,131.47,16.42]
[1726695583950,11.942,131.55,131.49,10.52]
[1726695584242,228.0,131.66,131.54,10.52]
[1726695584448,338.0,131.73,131.57,10.52]
[1726695584449,10.52,131.62,131.57,10.52]
[1726695584737,14.38973396,131.62,131.57,10.52]
[1726695585148,14.38973396,131.62,131.58,3.7993]
[1726695585451,14.38973396,131.62,131.57,10.52]
[1726695585940,3.86973396,131.62,131.54,16.42]
[1726695586141,3.86973396,131.62,131.57,3.7995]
[1726695586142,3.7984,131.62,131.57,3.7995]
[1726695586340,7.64164975,131.62,131.57,3.7995]
[1726695588955,7.64164975,131.62,131.58,3.7993]
[1726695591948,3.84324975,131.62,131.54,16.42]
[1726695592153,3.798,131.63,131.54,16.42]
[1726695592554,3.798,131.63,131.58,3.7992]
[1726695592855,7.60750494,131.63,131.54,16.42]
[1726695593059,3.798,131.63,131.54,16.42]
[1726695593260,3.798,131.63,131.58,3.7991]
[1726695593660,7.55237737,131.63,131.58,3.7991]
[1726695594157,7.55237737,131.63,131.59,3.7989]
[1726695595462,3.75437737,131.63,131.54,16.42]
[1726695595663,16.42,131.62,131.54,16.42]
[1726695595960,3.7987,131.61,131.57,3.7995]
[1726695596466,16.42,131.62,131.57,3.7995]
[1726695596866,3.7986,131.61,131.57,3.7995]
[1726695597066,3.7986,131.61,131.58,3.7993]
[1726695599761,16.42,131.63,131.59,3.7989]
[1726695599961,16.42,131.63,131.54,16.42]
[1726695600263,8.20549123,131.65,131.51,2.9347]
[1726695600264,16.42,131.59,131.51,2.9347]
[1726695600458,16.42,131.57,131.46,7.6053]
[1726695600672,3.8003,131.55,131.47,16.42]
[1726695600966,16.42,131.54,131.45,16.42]
[1726695601172,16.42,131.54,131.5,3.8015]
[1726695602169,19.336,131.56,131.47,16.42]
[1726695602769,2.916,131.56,131.49,16.42]
[1726695603766,6.716,131.56,131.52,3.8009]
[1726695605373,1.4188,131.56,131.53,3.8008]
[1726695605573,3.81350547,131.57,131.49,16.42]
[1726695605771,17.8807,131.58,131.51,16.42]
[1726695606072,1.4607,131.58,131.55,3.8002]
[1726695606265,16.42,131.6,131.51,16.42]
[1726695606465,20.219,131.6,131.56,3.7999]
[1726695608266,16.42,131.6,131.52,16.42]
[1726695608867,1.468,131.63,131.52,16.42]
[1726695609071,3.799,131.6,131.55,3.7999]
[1726695609270,16.42,131.61,131.55,3.7999]
[1726695609565,16.42,131.61,131.54,3.8004]
[1726695609973,16.42,131.59,131.54,3.8004]
[1726695610272,3.7995,131.58,131.54,3.8004]
[1726695610465,7.60759256,131.58,131.54,3.8004]
[1726695610664,3.7995,131.58,131.54,3.8004]
[1726695610861,3.78603651,131.58,131.51,16.42]
[1726695611172,3.88034517,131.58,131.51,16.42]
[1726695611471,3.7992,131.59,131.55,3.8]
[1726695611769,16.42,131.61,131.51,16.42]
[1726695611967,16.42,131.61,131.52,2.8362]
[1726695612368,3.7988,131.6,131.56,3.7997]
[1726695615374,3.7986,131.61,131.57,3.7994]
[1726695615568,17.888,131.63,131.54,16.42]
[1726695615971,10.51,131.61,131.57,3.7994]
[1726695616179,10.51,131.61,131.56,10.51]
[1726695616672,10.51,131.61,131.58,3.7992]
[1726695617465,10.51,131.61,131.6,3.7988]
[1726695626984,10.51,131.61,131.59,3.7989]
[1726695627680,10.51,131.6,131.58,3.7992]
[1726695627975,10.51,131.6,131.54,10.51]
[1726695628179,10.51,131.6,131.57,3.7995]
[1726695628784,14.3088,131.6,131.56,3.7998]
[1726695629578,10.51,131.58,131.56,3.7998]
[1726695629779,14.28262935,131.58,131.55,3.8001]
[1726695629980,14.28262935,131.58,131.53,10.51]
[1726695630183,14.28262935,131.58,131.56,3.7999]
[1726695630481,14.28262935,131.58,131.53,10.51]
[1726695630884,14.28262935,131.58,131.55,3.8]
[1726695632582,3.87329123,131.65,131.55,3.8]
[1726695632583,23.19876372,131.9,131.58,22.82]
[1726695632882,1.4594,131.84,131.59,41.79247204]
[1726695633081,10.51,131.73,131.65,10.51]
[1726695633286,10.51,131.73,131.55,152.08]
[1726695633587,10.51,131.71,131.56,40.07246258]
[1726695633888,10.51,131.71,131.65,10.51]
[1726695634392,10.51,131.67,131.6,10.51]
[1726695634687,10.51,131.67,131.5,18.98242191]
[1726695634886,10.51,131.67,131.6,10.51]
[1726695635284,10.51,131.67,131.52,18.98242191]
[1726695635285,6.6444,131.7,131.62,14.308]
[1726695635482,10.51,131.68,131.62,10.51]
[1726695635891,23.0547,131.7,131.63,3.7978]
[1726695636088,19.2585,131.7,131.63,3.7978]
[1726695636290,19.2585,131.7,131.6,16.41]
[1726695636791,3.7965,131.68,131.62,3.7982]
[1726695637792,23.0546,131.7,131.63,3.7977]
[1726695637981,19.2585,131.7,131.63,3.7977]
[1726695638377,3.7965,131.69,131.63,3.7977]
[1726695638586,19.2585,131.7,131.62,3.7982]
[1726695639285,3.7965,131.68,131.62,3.7982]
[1726695641694,3.7968,131.67,131.62,3.7982]
[1726695641890,16.41,131.69,131.63,3.7979]
[1726695642786,3.7965,131.68,131.63,3.7979]
[1726695643383,3.7968,131.67,131.62,3.7981]
[1726695646794,3.7968,131.67,131.63,3.7978]
[1726695648000,3.7966,131.68,131.63,3.7978]
[1726695648401,1.4439,131.67,131.63,3.7978]
[1726695649297,5.2407,131.67,131.63,3.7978]
[1726695650998,1.4439,131.67,131.64,3.7974]
[1726695651202,1.4439,131.67,131.63,16.41]
[1726695651898,17.8539,131.67,131.55,1.3916]
[1726695652095,17.8539,131.67,131.58,16.41]
[1726695652495,3.7976,131.64,131.6,3.7985]
[1726695652807,16.41,131.64,131.55,17.8016]
[1726695653008,3.0,131.63,131.51,3.75914854]
[1726695653192,3.0,131.63,131.48,9.37660822]
[1726695653193,16.41,131.56,131.48,9.37660822]
[1726695653399,1.4909,131.55,131.49,16.41]
[1726695653695,1.4909,131.55,131.52,3.801]
[1726695654102,3.86867882,131.54,131.52,3.801]
[1726695654498,3.86867882,131.54,131.49,16.41]
[1726695655097,1.4909,131.55,131.51,16.41]
[1726695655596,1.4909,131.55,131.54,3.8005]
[1726695655597,5.37213082,131.55,131.54,3.8005]
[1726695655799,1.4909,131.55,131.54,3.8005]
[1726695656400,5.37897737,131.55,131.54,3.8005]
[1726695656703,1.4909,131.55,131.54,3.8005]
[1726695657202,5.3886541,131.55,131.54,3.8005]
[1726695657703,3.8977541,131.55,131.54,3.8005]
[1726695657908,1.4105,131.57,131.56,3.7999]
[1726695658298,135.20996026,132.03,131.47,0.9034]
[1726695658604,18.65043152,131.82,131.73,16.41]
[1726695658803,6.70948016,131.82,131.73,16.41]
[1726695659006,6.70948016,131.82,131.79,3.793]
[1726695659217,6.70948016,131.82,131.73,16.41]
[1726695659907,6.70948016,131.82,131.73,26.24]
[1726695661202,6.70948016,131.82,131.77,3.7938]
[1726695662198,6.70948016,131.82,131.73,26.24]
[1726695663109,10.50208016,131.82,131.74,3.7947]
[1726695663508,26.24,131.81,131.71,26.24]
[1726695663706,26.24,131.81,131.69,26.24]
[1726695663910,3.7939,131.77,131.69,26.24]
[1726695664307,26.24,131.8,131.69,26.24]
[1726695664715,178.2,131.8,131.69,26.24]
[1726695664915,3.7939,131.77,131.7,3.7957]
[1726695665718,3.7942,131.76,131.71,3.7956]
[1726695665915,3.7942,131.76,131.69,26.24]
[1726695666318,3.7942,131.76,131.71,3.7956]
[1726695666619,3.7942,131.76,131.69,26.24]
[1726695667129,3.7942,131.76,131.7,3.7959]
[1726695667326,178.2,131.8,131.69,26.24]
[1726695667932,3.7944,131.76,131.7,3.7958]
[1726695668631,3.7945,131.75,131.7,3.7958]
[1726695668930,178.2,131.8,131.52,22.82]
[1726695668931,174.78,131.8,131.52,22.82]
[1726695669128,26.24,131.72,131.6,26.24]
[1726695669322,3.7966,131.68,131.62,3.7981]
[1726695669522,1.4538,131.71,131.6,26.24]
[1726695669827,3.797,131.67,131.61,3.7983]
[1726695672334,3.797,131.67,131.62,3.7982]
[1726695672634,26.24,131.7,131.58,26.24]
[1726695672830,2.9105,131.66,131.58,26.24]
[1726695673030,3.7975,131.65,131.6,3.7987]
[1726695673225,2.9105,131.66,131.58,26.24]
[1726695673627,3.7977,131.64,131.59,3.7988]
[1726695673937,7.65857723,131.64,131.59,3.7988]
[1726695674128,3.7977,131.64,131.59,3.7988]
[1726695674732,7.65401714,131.64,131.59,3.7988]
[1726695676631,3.85631714,131.64,131.56,26.24]
[1726695676837,2.9105,131.66,131.56,26.24]
[1726695677333,3.798,131.63,131.58,3.7991]
[1726695677534,7.55703519,131.63,131.58,3.7991]
[1726695677932,3.7982,131.62,131.58,3.7991]
[1726695678738,3.74801497,131.61,131.58,3.7991]
[1726695679634,26.24,131.63,131.45,30.4261]
[1726695679839,1.4777,131.62,131.51,26.24]
[1726695680039,3.799,131.6,131.55,3.8002]
[1726695680532,3.799,131.6,131.53,16.43]
[1726695680533,3.7986,131.61,131.53,16.43]
[1726695681138,3.7986,131.61,131.57,3.7996]
[1726695681532,25.52529834,131.62,131.57,3.7996]
[1726695681730,3.81929834,131.62,131.57,16.43]
[1726695681936,19.3405,131.66,131.57,16.43]
[1726695682445,23.09288649,131.66,131.57,16.43]
[1726695682942,3.7979,131.63,131.59,3.7988]
[1726695686840,3.7979,131.63,131.58,3.7992]
[1726695689841,3.7982,131.62,131.58,3.7992]
[1726695691748,3.798,131.63,131.59,3.799]
[1726695692947,3.7983,131.62,131.58,3.7993]
[1726695696447,3.7995,131.58,131.49,2.2799]
[1726695696649,3.7995,131.58,131.5,16.43]
[1726695696650,3.7287249,131.58,131.5,16.43]
[1726695696850,1.4258,131.65,131.52,16.43]
[1726695697152,1.4258,131.65,131.49,2.2799]
[1726695697354,16.43,131.6,131.52,16.43]
[1726695697556,20.2289,131.6,131.56,3.7999]
[1726695698054,3.7991,131.59,131.56,3.7999]
[1726695698254,7.69354601,131.59,131.56,3.7999]
[1726695698451,3.7991,131.59,131.56,3.7999]
[1726695699048,7.56431395,131.59,131.56,3.7999]
[1726695699253,7.56431395,131.59,131.55,3.8001]
[1726695700056,3.7995,131.58,131.54,3.8004]
[1726695700448,16.43,131.58,131.5,16.43]
[1726695701747,20.2295,131.58,131.5,16.43]
[1726695702053,16.43,131.58,131.5,16.43]
[1726695702455,3.7997,131.57,131.53,3.8005]
[1726695706359,3.7997,131.57,131.54,3.8005]
[1726695709859,1.4767,131.58,131.55,3.8]
[1726695710464,1.4767,131.58,131.56,3.7998]
[1726695711267,1.4767,131.58,131.55,3.8001]
[1726695711861,1.4767,131.58,131.49,17.3312]
[1726695712072,5.2762,131.58,131.54,3.8002]
[1726695712368,5.2762,131.58,131.49,17.3312]
[1726695713761,5.2762,131.58,131.55,3.8]
[1726695714660,5.2762,131.58,131.54,3.8004]
[1726695715780,5.2762,131.58,131.55,3.8002]
[1726695717464,16.43,131.57,131.48,138.69907439]
[1726695718773,20.2297,131.57,131.48,138.69907439]
[1726695719571,3.8,131.56,131.48,138.69907439]
[1726695720165,3.8,131.56,131.53,3.8006]
[1726695720673,20.2297,131.57,131.54,3.8005]
[1726695720977,16.43,131.57,131.48,138.58601565]
[1726695721175,16.43,131.55,131.48,138.58601565]
[1726695721375,24.08783617,131.55,131.52,3.8011]
[1726695721774,20.28743617,131.55,131.46,17.8264]
[1726695721972,3.8007,131.54,131.46,17.8264]
[1726695722576,3.801,131.53,131.46,16.43]
[1726695722775,16.43,131.53,131.46,16.43]
[1726695722978,16.43,131.53,131.5,3.8015]
[1726695723868,20.2308,131.53,131.5,3.8015]
[1726695724080,16.43,131.53,131.5,3.8015]
[1726695724467,16.43,131.53,131.51,3.8013]
[1726695724673,20.28743617,131.55,131.51,3.8013]
[1726695724874,20.28743617,131.55,131.48,16.43]
[1726695725077,3.85743617,131.55,131.53,3.8008]
[1726695725281,16.43,131.57,131.48,16.43]
[1726695725669,20.25218298,131.57,131.48,16.43]
[1726695725873,3.82218298,131.57,131.49,16.43]
[1726695726081,1.4767,131.58,131.49,16.43]
[1726695726669,9.07099745,131.58,131.54,3.8003]
[1726695728482,16.43,131.56,131.48,16.43]
[1726695729877,16.43,131.56,131.54,3.8004]
[1726695733886,10.52,131.55,131.54,3.8004]
[1726695740387,10.52,131.55,131.53,3.8006]
[1726695740885,10.52,131.55,131.5,10.52]
[1726695741088,10.52,131.55,131.54,3.8005]
[1726695746791,10.52,131.55,131.45,16.88378109]
[1726695747096,5.27149745,131.58,131.48,10.52]
[1726695747687,5.27149745,131.58,131.47,1.4478]
[1726695748785,10.52,131.52,131.47,11.9678]
[1726695749892,10.52,131.52,131.51,3.8014]
[1726695754995,5.27149745,131.58,131.48,10.52]
[1726695755193,5.27149745,131.58,131.47,1.4478]
[1726695755194,10.52,131.55,131.49,10.52]
[1726695755595,10.52,131.55,131.53,3.8006]
[1726695755992,10.52,131.55,131.49,10.52]
[1726695756194,10.52,131.55,131.53,3.8007]
[1726695756898,3.7997,131.57,131.53,3.8007]
[1726695757097,10.52,131.54,131.53,3.8007]
[1726695787129,10.52,131.55,131.54,3.8004]
[1726695788226,3.7997,131.57,131.54,3.8004]
[1726695788522,10.52,131.55,131.54,3.8004]
[1726695793313,3.7997,131.57,131.54,3.8004]
[1726695793523,10.52,131.56,131.54,3.8004]
[1726695800724,14.32,131.56,131.54,3.8004]
[1726695801731,14.32,131.56,131.53,3.8006]
[1726695806443,3.8002,131.55,131.52,3.801]
[1726695806645,12.0281,131.54,131.52,3.801]
[1726695808445,15.8287,131.54,131.51,3.8012]
[1726695808852,10.52,131.53,131.51,3.8012]
[1726695811451,10.52,131.53,131.5,3.8016]
[1726695812451,5.3087,131.54,131.5,3.8016]
[1726695812752,10.52,131.52,131.5,3.8016]
[1726695814151,11.9308,131.53,131.5,3.8016]
[1726695817048,1.4108,131.53,131.47,10.52]
[1726695817254,1.4108,131.53,131.48,7.27494415]
[1726695817456,1.4108,131.53,131.49,10.52]
[1726695817646,1.4108,131.53,131.49,17.79430018]
[1726695817852,1.4108,131.53,131.49,10.52]
[1726695818654,1.4108,131.53,131.52,3.8011]
[1726695819153,1.4108,131.53,131.48,10.52]
[1726695819344,1.4108,131.53,131.49,7.27407386]
[1726695819550,1.4108,131.53,131.48,10.52]
[1726695819752,1.5081,131.54,131.49,7.27431818]
[1726695819953,12.0281,131.54,131.5,7.27431818]
[1726695820157,1.5081,131.54,131.47,10.52]
[1726695820361,1.5081,131.54,131.49,10.52]
[1726695821456,1.5081,131.54,131.52,3.8009]
[1726695822358,10.52,131.53,131.52,3.8009]
[1726695827662,1.5081,131.54,131.52,3.8009]
[1726695827863,12.0281,131.54,131.52,3.8009]
[1726695828356,12.0281,131.54,131.48,10.52]
[1726695828557,12.0281,131.54,131.49,7.27358098]
[1726695828860,12.0281,131.54,131.48,10.52]
[1726695829054,12.0281,131.54,131.52,3.8009]
[1726695829258,12.0281,131.54,131.48,10.52]
[1726695829458,12.0281,131.54,131.49,7.27473502]
[1726695829664,12.0281,131.54,131.48,10.52]
[1726695829854,12.0281,131.54,131.49,7.27450695]
[1726695830159,12.0281,131.54,131.48,10.52]
[1726695830365,1.5081,131.54,131.53,3.8008]
[1726695833258,12.0281,131.54,131.52,3.8009]
[1726695833661,12.0281,131.54,131.48,10.52]
[1726695833864,12.0281,131.54,131.49,7.27873517]
[1726695834067,1.5081,131.54,131.49,7.27873517]
[1726695834265,12.0281,131.54,131.48,10.52]
[1726695834466,1.5081,131.54,131.49,7.27886788]
[1726695834665,12.0281,131.54,131.48,10.52]
[1726695834864,12.0281,131.54,131.49,7.27778748]
[1726695835069,12.0281,131.54,131.46,1.4007]
[1726695835367,12.0281,131.54,131.52,3.8008]
[1726695836366,1.5081,131.54,131.52,3.8008]
[1726695836567,12.0281,131.54,131.52,3.8008]
[1726695836968,1.5081,131.54,131.52,3.8008]
[1726695840471,12.0281,131.54,131.52,3.8008]
[1726695840667,12.0281,131.54,131.51,3.8013]
[1726695840873,10.52,131.52,131.44,0.8996]
[1726695841171,10.52,131.51,131.49,3.8018]
[1726695841364,14.27133637,131.51,131.49,3.8018]
[1726695842676,14.27133637,131.51,131.5,3.8017]
[1726695846876,14.27133637,131.51,131.43,138.77458257]
[1726695847076,14.27133637,131.51,131.44,32.51485265]
[1726695847276,10.52,131.5,131.45,32.51485265]
[1726695847580,10.52,131.5,131.49,3.802]
[1726695847975,14.27467087,131.5,131.49,3.802]
[1726695850684,3.75467087,131.5,131.49,3.802]
[1726695850983,10.52,131.51,131.5,3.8017]
[1726695851371,3.76607948,131.51,131.5,3.8017]
[1726695851580,10.52,131.51,131.5,3.8017]
[1726695851779,14.32945084,131.51,131.5,3.8017]
[1726695852684,3.80945084,131.51,131.5,3.8017]
[1726695852887,10.52,131.51,131.5,3.8017]
[1726695853077,14.3020584,131.51,131.5,3.8017]
[1726695881890,3.7820584,131.51,131.5,3.8017]
[1726695882090,10.52,131.51,131.5,3.8017]
[1726695882287,14.3879541,131.51,131.5,3.8017]
[1726695882798,14.3879541,131.51,131.34,38.0576]
[1726695883101,10.52,131.47,131.41,32.53763961]
[1726695883398,10.52,131.47,131.42,34.69797916]
[1726695883698,10.52,131.47,131.43,12.51447677]
[1726695883897,10.52,131.47,131.46,3.8028]
[1726695889503,1.5149,131.49,131.46,3.8028]
[1726695889706,10.52,131.47,131.46,3.8028]
[1726695893410,10.52,131.47,131.4,11.4221]
[1726695893602,10.52,131.45,131.4,11.4221]
[1726695894003,10.52,131.45,131.4,0.9021]
[1726695894510,5.23228075,131.49,131.45,3.8029]
[1726695894703,10.52,131.46,131.45,3.8029]
[1726695895398,10.52,131.46,131.44,3.8033]
[1726695895602,9.03428075,131.49,131.44,3.8033]
[1726695896102,10.52,131.45,131.44,3.8033]
[1726695898403,10.52,131.45,131.43,3.8035]
[1726695898602,10.52,131.44,131.43,3.8035]
[1726695900500,10.52,131.44,131.42,3.8039]
[1726695900698,10.52,131.43,131.42,3.8039]
[1726695901910,10.52,131.43,131.42,3.8039]
[1726695913916,10.52,131.43,131.41,3.8041]
[1726695926731,10.52,131.42,131.41,3.8041]
[1726695926934,14.2764778,131.42,131.41,3.8041]
[1726695933338,14.2764778,131.42,131.4,3.8044]
[1726695933541,10.52,131.41,131.4,3.8044]
[1726695942345,10.52,131.41,131.39,3.8047]
[1726695942642,10.52,131.4,131.39,3.8047]
[1726695950150,10.52,131.4,131.37,3.8052]